bitfinex/quotes_ETHUSD_20250730
["timestamp","ask_amount","ask_price","bid_price","bid_amount"]
[1753835925404,10.62714687,3771.7,3771.6,0.001]
[1753835925641,14.78214687,3771.7,3771.6,0.001]
[1753835926238,10.62714687,3771.7,3771.6,0.001]
[1753835926534,14.78214687,3771.7,3771.6,0.001]
[1753835927400,10.62714687,3771.7,3771.6,0.001]
[1753835927822,14.78214687,3771.7,3771.6,0.001]
[1753835928027,14.78114687,3771.7,3771.6,0.001]
[1753835928430,10.62714687,3771.7,3771.6,0.001]
[1753835928638,14.78114687,3771.7,3771.6,0.001]
[1753835929243,10.62714687,3771.7,3771.6,0.001]
[1753835929418,6.374,3771.7,3771.6,0.7571]
[1753835929735,0.002,3772.1,3771.6,1.5549]
[1753835929936,6.374,3772.0,3771.7,0.82049]
[1753835930145,10.528,3772.0,3771.7,0.82049]
[1753835930842,10.528,3771.9,3771.7,0.48219]
[1753835931136,4.154,3771.8,3771.7,0.48219]
[1753835931340,0.002,3772.1,3771.7,0.48219]
[1753835931654,10.528,3772.0,3771.8,0.836039]
[1753835931861,10.528,3771.9,3771.8,0.3383]
[1753835932154,10.528,3771.9,3771.6,0.8899]
[1753835932357,0.002,3772.1,3771.6,0.8899]
[1753835932533,10.528,3772.0,3771.7,0.3267]
[1753835932729,10.527,3771.9,3771.7,0.3267]
[1753835932952,0.002,3772.1,3771.7,0.48219]
[1753835933127,10.527,3772.0,3771.8,0.3267]
[1753835933327,0.002,3772.1,3771.7,0.15549]
[1753835933647,0.002,3772.1,3771.9,0.1328]
[1753835933648,10.527,3772.0,3771.9,0.1328]
[1753835933845,10.527,3772.0,3771.9,0.968839]
[1753835934022,0.002,3772.1,3772.0,0.7777]
[1753835934226,0.002,3772.1,3772.0,1.46921113]
[1753835934451,4.155,3772.1,3772.0,1.4427]
[1753835934652,4.155,3772.1,3772.0,1.6173539]
[1753835935524,0.002,3772.1,3772.0,1.6173539]
[1753835935957,4.155,3772.1,3772.0,1.6173539]
[1753835937625,4.155,3772.1,3772.0,0.9523539]
[1753835938162,5.0789,3772.1,3771.6,0.001]
[1753835938326,1.0567,3772.0,3771.6,0.001]
[1753835938528,4.0567,3772.0,3771.6,0.001]
[1753835938726,0.9239,3771.9,3771.6,0.001]
[1753835938962,4.152,3771.8,3771.6,0.001]
[1753835939132,4.6106,3771.8,3771.6,0.001]
[1753835939534,4.152,3771.7,3771.6,0.001]
[1753835939752,4.152,3771.7,3771.6,0.1338]
[1753835939948,4.152,3771.7,3771.6,0.4721]
[1753835940149,0.002,3772.1,3771.7,0.7691]
[1753835940359,4.152,3772.0,3771.9,0.7691]
[1753835940742,4.152,3772.0,3771.9,1.5669]
[1753835941959,4.152,3772.0,3771.9,1.2286]
[1753835942178,5.0967,3772.0,3771.6,0.7665]
[1753835942365,0.9447,3771.9,3771.6,0.7665]
[1753835942532,0.9447,3771.8,3771.6,0.7665]
[1753835942734,4.151,3771.7,3771.6,0.001]
[1753835942971,5.0957,3771.7,3771.6,0.001]
[1753835943363,4.6421,3771.7,3771.6,0.001]
[1753835943563,4.151,3771.7,3771.6,0.001]
[1753835944737,0.4931,3772.1,3771.6,0.001]
[1753835944953,4.151,3772.0,3771.7,0.7601]
[1753835945533,4.6421,3772.0,3771.7,0.7601]
[1753835945933,0.4911,3771.9,3771.7,0.7601]
[1753835946168,0.9447,3771.8,3771.6,0.001]
[1753835946370,4.151,3771.7,3771.6,0.001]
[1753835946863,0.002,3772.1,3771.6,0.02751394]
[1753835947063,0.002,3772.1,3771.7,1.15741324]
[1753835947064,10.524,3772.0,3771.7,1.15741324]
[1753835947379,10.524,3772.0,3771.8,0.14851132]
[1753835949189,4.15,3771.9,3771.8,0.14851132]
[1753835949390,4.6411,3771.9,3771.7,0.7926]
[1753835949577,0.4911,3771.8,3771.6,0.001]
[1753835949782,4.15,3771.7,3771.6,0.001]
[1753835951183,0.9467,3772.1,3771.6,0.001]
[1753835951494,4.15,3772.0,3771.6,0.001]
[1753835952291,0.4911,3771.9,3771.6,0.001]
[1753835952483,4.15,3771.8,3771.6,0.001]
[1753835952974,4.6411,3771.8,3771.7,0.1328]
[1753835953170,0.9447,3771.8,3771.6,0.001]
[1753835953486,0.9447,3771.7,3771.6,0.001]
[1753835954693,0.97752545,3771.7,3771.6,0.001]
[1753835954998,0.9447,3771.7,3771.6,0.001]
[1753835955791,5.0937,3771.7,3771.6,0.001]
[1753835957598,5.0957,3771.7,3771.6,0.001]
[1753835957970,0.002,3771.7,3771.6,0.001]
[1753835958184,10.524,3771.7,3771.6,0.001]
[1753835958958,11.4687,3771.7,3771.6,0.001]
[1753835959372,7.3197,3771.7,3771.6,0.001]
[1753835959571,12.98107,3771.7,3771.6,0.001]
[1753835961262,13.17553237,3771.7,3771.6,0.001]
[1753835961668,16.17933237,3771.7,3771.6,0.001]
[1753835963299,16.31213237,3771.7,3771.6,0.001]
[1753835963982,16.31113237,3771.7,3771.6,0.001]
[1753835966983,12.16313237,3771.7,3771.6,0.001]
[1753835967184,16.31113237,3771.7,3771.6,0.001]
[1753835970836,16.86113237,3771.7,3771.6,0.001]
[1753835971132,46.86113237,3771.7,3771.6,0.001]
[1753835973124,16.86113237,3771.7,3771.6,0.001]
[1753835973330,46.86113237,3771.7,3771.6,0.001]
[1753835977129,42.71313237,3771.7,3771.6,0.001]
[1753835977318,46.86013237,3771.7,3771.6,0.001]
[1753835977534,15.36543237,3771.7,3771.6,0.001]
[1753835977694,6.70326237,3771.7,3771.6,0.001]
[1753835977899,6.5088,3771.7,3771.6,0.001]
[1753835978133,6.5088,3771.7,3771.6,0.3277]
[1753835978432,10.6548,3771.7,3771.6,0.001]
[1753835978594,11.8781,3771.7,3771.6,0.001]
[1753835978796,10.6548,3771.7,3771.6,0.001]
[1753835979229,6.5088,3771.7,3771.6,0.001]
[1753835979531,10.6548,3771.7,3771.6,0.3277]
[1753835980211,10.6548,3771.7,3771.6,0.001]
[1753835981104,6.5088,3771.7,3771.6,0.001]
[1753835981307,16.13088,3771.7,3771.6,0.001]
[1753835981507,16.45258,3771.7,3771.6,0.001]
[1753835983207,13.521,3771.7,3771.6,0.001]
[1753835983406,13.521,3771.7,3771.6,0.3277]
[1753835983606,10.521,3771.7,3771.6,0.3277]
[1753835984012,10.521,3771.7,3771.6,0.001]
[1753835985443,0.002,3771.7,3771.6,0.666]
[1753835985600,10.521,3771.7,3771.6,0.84885]
[1753835986502,10.521,3771.7,3771.6,0.001]
[1753835986999,0.002,3771.7,3771.6,0.001]
[1753835987201,0.002,3771.7,3771.6,1.459]
[1753835987410,4.147,3771.7,3771.6,1.459]
[1753835988224,4.147,3771.7,3771.6,0.794]
[1753835988737,4.147,3771.7,3771.6,1.2666]
[1753835988738,0.002,3771.7,3771.6,1.2666]
[1753835988928,4.146,3771.7,3771.6,1.459]
[1753835989332,4.146,3771.7,3771.6,0.794]
[1753835989637,0.002,3771.7,3771.6,0.9399]
[1753835989816,4.146,3771.7,3771.6,0.9399]
[1753835990019,4.146,3771.7,3771.6,1.2666]
[1753835990321,4.146,3771.7,3771.6,0.9399]
[1753835991130,4.146,3771.7,3771.6,1.6049]
[1753835991441,4.146,3771.7,3771.6,1.7377]
[1753835991999,0.002,3771.7,3771.6,1.7377]
[1753835992201,4.146,3771.7,3771.6,1.7377]
[1753835992439,4.145,3771.7,3771.6,1.7377]
[1753835995346,0.002,3771.7,3771.6,1.7377]
[1753835995544,4.145,3771.7,3771.6,1.7377]
[1753835997145,0.002,3771.7,3771.6,1.7377]
[1753835997450,4.144,3771.7,3771.6,1.7377]
[1753836000129,4.144,3771.7,3771.6,1.0727]
[1753836000362,0.002,3771.7,3771.6,1.0727]
[1753836000525,4.143,3771.7,3771.6,1.0727]
[1753836001146,0.002,3771.7,3771.6,1.0727]
[1753836001337,4.143,3771.7,3771.6,1.0727]
[1753836002158,0.002,3771.7,3771.6,1.0727]
[1753836002455,4.143,3771.7,3771.6,1.0727]
[1753836004174,0.002,3771.7,3771.6,1.0727]
[1753836004327,4.143,3771.7,3771.6,1.0727]
[1753836004963,4.143,3771.7,3771.6,0.2797]
[1753836005273,5.0766,3771.7,3771.6,0.1338]
[1753836005468,4.142,3771.7,3771.6,0.1338]
[1753836006129,0.002,3771.7,3771.6,0.1338]
[1753836006321,4.142,3771.7,3771.6,0.1338]
[1753836007166,0.002,3771.7,3771.6,0.1338]
[1753836007369,4.142,3771.7,3771.6,0.1338]
[1753836007665,0.002,3771.7,3771.6,0.1338]
[1753836007862,4.142,3771.7,3771.6,1.5828]
[1753836008068,0.002,3772.1,3771.6,1.5828]
[1753836008069,0.002,3772.1,3771.8,3.43519551]
[1753836008249,0.002,3772.1,3772.0,0.784]
[1753836008437,4.142,3772.1,3772.0,0.9168]
[1753836008636,0.002,3772.1,3772.0,3.89461346]
[1753836008843,4.142,3772.1,3772.0,5.73750321]
[1753836009028,4.142,3772.1,3772.0,3.08638975]
[1753836009366,4.142,3772.1,3772.0,5.73750321]
[1753836009927,0.002,3772.2,3772.1,3.20104318]
[1753836010127,4.141,3772.2,3772.1,8.89921169]
[1753836010733,0.002,3772.2,3772.1,8.89921169]
[1753836010953,4.141,3772.2,3772.1,8.89921169]
[1753836011124,0.002,3772.5,3772.3,2.65090263]
[1753836011332,0.002,3772.5,3772.4,4.3321]
[1753836011647,0.002,3772.5,3772.4,7.64793236]
[1753836011842,0.002,3772.5,3772.4,0.7821]
[1753836012446,0.002,3772.5,3772.4,3.7821]
[1753836013172,0.002,3772.5,3772.4,0.7821]
[1753836013482,0.002,3772.5,3772.4,1.58818482]
[1753836013680,4.6345,3772.5,3772.4,0.7821]
[1753836013985,4.6335,3772.5,3772.4,0.7821]
[1753836014537,4.6335,3772.5,3772.3,0.1328]
[1753836014538,5.0736,3772.5,3772.3,0.1328]
[1753836014767,0.9336,3772.4,3772.3,0.1328]
[1753836015240,5.0716,3772.4,3772.3,0.1328]
[1753836016779,0.9336,3772.4,3772.3,0.1328]
[1753836017082,5.0716,3772.4,3772.3,0.1328]
[1753836018785,0.9336,3772.4,3772.3,0.1328]
[1753836019151,5.0706,3772.4,3772.3,0.1328]
[1753836021197,5.0706,3772.4,3771.8,0.7536]
[1753836021387,0.4935,3772.3,3772.2,0.1328]
[1753836021807,0.9336,3772.3,3772.2,0.1328]
[1753836023197,5.0706,3772.3,3772.2,0.1328]
[1753836023714,5.0716,3772.3,3772.2,0.1328]
[1753836024577,0.9356,3772.3,3772.2,0.1328]
[1753836024881,5.0716,3772.3,3772.2,0.1328]
[1753836026115,0.9356,3772.3,3772.2,0.1328]
[1753836026321,5.0716,3772.3,3772.2,0.1328]
[1753836028300,0.4955,3772.3,3772.2,0.1328]
[1753836028504,5.0716,3772.3,3772.2,0.1328]
[1753836028842,0.9356,3772.3,3772.2,0.1328]
[1753836028993,5.0716,3772.3,3772.2,0.1328]
[1753836030736,5.8832,3772.3,3771.6,0.001]
[1753836031038,0.9336,3772.2,3772.0,0.1328]
[1753836031490,4.9496,3772.3,3772.0,0.1328]
[1753836031691,0.9336,3772.1,3772.0,0.1328]
[1753836032304,5.0686,3772.1,3772.0,0.1328]
[1753836033143,0.9336,3772.1,3772.0,0.1328]
[1753836033349,5.0686,3772.1,3772.0,0.1328]
[1753836034041,0.4935,3772.1,3772.0,0.1328]
[1753836034248,0.002,3772.3,3772.0,0.1328]
[1753836034549,4.135,3772.2,3772.0,0.4595]
[1753836034718,4.135,3772.2,3772.1,0.45705]
[1753836034922,4.135,3772.2,3772.1,0.58985]
[1753836036811,0.002,3772.3,3772.1,1.42065]
[1753836037016,0.002,3772.3,3772.2,3.3159729]
[1753836037356,4.136,3772.3,3772.2,3.3159729]
[1753836037646,4.136,3772.3,3772.2,4.0973729]
[1753836037854,4.136,3772.3,3772.2,1.4464]
[1753836037855,0.002,3772.3,3772.2,1.4464]
[1753836038056,4.136,3772.3,3772.2,1.76954029]
[1753836039055,5.0797,3772.3,3772.1,0.1328]
[1753836039259,4.136,3772.3,3772.1,0.1328]
[1753836039545,0.9437,3772.2,3772.1,0.1328]
[1753836040414,1.79502545,3772.2,3771.9,0.1328]
[1753836040747,0.9437,3772.1,3771.9,0.1328]
[1753836041044,0.98412545,3772.0,3771.6,0.001]
[1753836041244,0.60658254,3772.2,3771.6,0.001]
[1753836041245,0.1328,3771.8,3771.6,0.001]
[1753836041449,1.21051746,3771.7,3771.6,0.001]
[1753836041622,2.18704291,3771.7,3771.6,0.001]
[1753836041828,2.15421746,3771.7,3771.6,0.001]
[1753836042020,2.18704291,3771.7,3771.6,0.001]
[1753836042223,2.15421746,3771.7,3771.6,0.001]
[1753836043241,6.28721746,3771.7,3771.6,0.001]
[1753836045135,6.28821746,3771.7,3771.6,0.001]
[1753836045627,2.15421746,3771.7,3771.6,0.001]
[1753836045829,6.28721746,3771.7,3771.6,0.001]
[1753836048418,2.15421746,3771.7,3771.6,0.001]
[1753836048616,6.28721746,3771.7,3771.6,0.001]
[1753836049462,2.15421746,3771.7,3771.6,0.001]
[1753836049619,6.28721746,3771.7,3771.6,0.001]
[1753836052018,9.28721746,3771.7,3771.6,0.001]
[1753836058751,39.83721746,3771.7,3771.6,0.001]
[1753836060643,35.70421746,3771.7,3771.6,0.001]
[1753836060864,39.83621746,3771.7,3771.6,0.001]
[1753836065693,9.83621746,3771.7,3771.6,0.001]
[1753836065874,39.83621746,3771.7,3771.6,0.001]
[1753836068601,42.48754179,3771.7,3771.6,0.001]
[1753836068984,39.83621746,3771.7,3771.6,0.001]
[1753836069286,39.83421746,3771.7,3771.6,0.001]
[1753836070276,45.28054179,3771.7,3771.1,0.04]
[1753836070474,0.55,3770.9,3769.4,0.8346]
[1753836070674,0.55,3770.4,3769.4,1.1613]
[1753836070888,3.8213,3770.2,3769.4,0.3307]
[1753836071487,4.7567,3770.2,3769.4,0.3307]
[1753836072090,4.7567,3770.2,3769.4,0.004]
[1753836072402,4.78952545,3770.2,3769.4,0.004]
[1753836073902,4.92071784,3770.2,3769.4,0.004]
[1753836074078,4.92071784,3770.2,3769.7,0.001]
[1753836074280,34.92071784,3770.2,3769.7,0.001]
[1753836074484,1.329,3769.5,3769.4,0.004]
[1753836074698,3.55,3769.1,3767.6,1.1214]
[1753836074870,30.0,3768.8,3767.6,1.1214]
[1753836075072,3.0,3768.5,3767.6,1.1214]
[1753836075298,3.0,3768.3,3767.6,1.1214]
[1753836075514,7.16282545,3768.2,3767.6,1.1214]
[1753836075741,7.9322,3768.2,3767.6,1.1214]
[1753836076095,9.04865431,3768.2,3767.2,0.8091]
[1753836076296,10.06885431,3768.2,3767.2,0.8091]
[1753836076642,10.06885431,3768.2,3765.4,0.10510987]
[1753836076643,1.3524,3767.4,3765.4,0.10510987]
[1753836076797,3.55,3766.9,3765.4,0.10510987]
[1753836077137,3.55,3766.5,3765.4,0.43180987]
[1753836077300,4.129,3766.4,3765.4,0.10510987]
[1753836077494,4.129,3767.1,3766.2,0.665]
[1753836077715,3.0,3767.2,3766.3,0.665]
[1753836077997,3.0,3767.0,3766.3,0.3267]
[1753836078237,3.8031,3766.8,3766.3,0.3267]
[1753836078440,4.132,3766.8,3766.3,0.665]
[1753836078755,4.133,3767.5,3766.4,0.8212]
[1753836079043,4.32986834,3767.6,3766.6,0.772]
[1753836079248,4.136,3767.6,3766.7,0.482]
[1753836079552,33.0,3767.4,3766.4,0.3267]
[1753836079724,1.28062545,3767.3,3766.4,0.3267]
[1753836079920,7.136,3767.2,3766.4,0.3267]
[1753836080124,3.0,3767.1,3766.4,0.3267]
[1753836080324,0.1328,3766.7,3766.4,0.3267]
[1753836081353,4.2688,3767.4,3766.6,0.8865]
[1753836081557,4.2688,3767.4,3766.7,0.665]
[1753836081558,4.136,3767.4,3766.7,0.665]
[1753836081865,4.136,3767.4,3766.9,0.1328]
[1753836082152,4.136,3767.4,3767.0,0.665]
[1753836082360,4.136,3767.4,3767.1,0.665]
[1753836082533,0.1328,3767.5,3767.1,0.3383]
[1753836082728,0.1328,3767.5,3766.9,0.1328]
[1753836083131,0.4938,3767.5,3766.9,0.1328]
[1753836083357,0.4938,3767.5,3766.8,0.7875]
[1753836083358,0.1328,3767.0,3766.8,0.7875]
[1753836083733,0.1328,3767.0,3766.9,0.3267]
[1753836084055,4.138,3767.1,3766.9,0.665]
[1753836084215,0.19896575,3767.6,3766.9,0.31188]
[1753836084216,4.2718,3767.4,3766.9,0.31188]
[1753836084417,4.6042,3767.4,3766.8,0.7875]
[1753836084617,0.1328,3767.2,3766.8,0.7875]
[1753836084818,4.139,3767.1,3766.8,0.7875]
[1753836085018,4.139,3767.1,3766.9,0.3267]
[1753836085260,4.139,3767.1,3767.0,0.3267]
[1753836085429,4.139,3767.1,3766.8,0.7875]
[1753836085820,4.139,3767.1,3766.8,1.1142]
[1753836086026,4.139,3767.1,3766.9,0.665]
[1753836086240,4.139,3767.1,3767.0,0.665]
[1753836086760,4.2728,3767.5,3767.0,0.665]
[1753836086924,4.2728,3767.5,3766.8,0.9203]
[1753836087130,4.2728,3767.5,3767.1,0.665]
[1753836087430,4.2728,3767.5,3766.1,3.04]
[1753836087431,4.14,3767.5,3767.3,0.8243]
[1753836089858,0.1328,3767.7,3767.3,0.8243]
[1753836090032,4.137,3768.0,3767.4,0.665]
[1753836090240,0.1328,3767.9,3767.4,0.96001]
[1753836090455,0.1328,3767.9,3767.4,0.1328]
[1753836090759,0.1328,3767.9,3767.6,0.7935]
[1753836091164,0.1328,3767.9,3767.6,1.1202]
[1753836091336,0.1328,3767.9,3767.6,0.7935]
[1753836092162,3.0,3768.5,3767.4,0.1328]
[1753836092163,0.4998,3768.8,3767.8,0.8146]
[1753836092364,0.1328,3768.4,3768.0,0.8146]
[1753836092549,0.1328,3768.4,3768.0,1.1413]
[1753836094630,0.1328,3768.4,3768.0,0.8146]
[1753836096365,0.6326,3768.4,3768.0,0.8146]
[1753836097758,0.4998,3768.3,3768.0,0.8146]
[1753836098070,0.1328,3768.4,3768.0,1.1413]
[1753836098470,0.1328,3768.4,3768.0,1.4796]
[1753836098658,0.1328,3768.4,3768.0,0.8146]
[1753836099470,0.1328,3768.4,3768.1,0.3267]
[1753836099770,0.1328,3768.4,3768.0,0.8146]
[1753836100472,0.1328,3768.4,3768.0,1.1413]
[1753836100813,0.1328,3768.4,3768.0,0.8146]
[1753836102012,0.6326,3768.4,3768.0,0.8146]
[1753836103522,4.135,3768.7,3768.1,0.3267]
[1753836103721,0.1328,3768.8,3768.4,0.8065]
[1753836103928,0.04,3768.9,3768.5,0.69153575]
[1753836104099,0.04,3768.9,3768.8,0.1328]
[1753836105006,0.04,3768.9,3768.8,0.4595]
[1753836105207,4.134,3769.8,3768.9,0.8232]
[1753836105406,4.134,3769.8,3769.0,0.3267]
[1753836105725,0.002,3769.8,3769.4,0.1328]
[1753836106180,0.002,3769.8,3769.5,0.8251]
[1753836106624,0.002,3769.8,3769.7,0.1328]
[1753836107489,0.002,3769.8,3769.7,1.6229]
[1753836108025,0.002,3769.8,3769.7,0.9579]
[1753836108230,0.002,3769.8,3769.7,1.44689]
[1753836108390,0.002,3769.8,3769.7,1.78519]
[1753836109218,0.002,3769.8,3769.7,1.12019]
[1753836109422,0.5018,3769.8,3769.7,0.9579]
[1753836110138,0.002,3769.8,3769.7,0.9579]
[1753836116715,0.002,3770.2,3769.7,1.6229]
[1753836116928,0.04,3770.9,3770.1,0.1328]
[1753836117152,0.04,3770.9,3770.2,1.4777]
[1753836117354,0.04,3770.9,3770.8,0.1328]
[1753836117556,0.04,3770.9,3770.8,0.891]
[1753836118260,0.04,3770.9,3770.8,1.2177]
[1753836118461,0.4998,3771.8,3770.8,0.7978]
[1753836118762,0.04,3771.9,3771.1,2.65172581]
[1753836118962,0.04,3771.9,3771.7,0.1328]
[1753836119122,0.04,3771.9,3771.8,0.8296]
[1753836119630,0.04,3771.9,3771.8,1.1563]
[1753836120419,0.04,3771.9,3771.8,0.8296]
[1753836120770,0.04,3771.9,3771.8,4.9586]
[1753836120975,0.04,3771.9,3771.8,5.50041]
[1753836123969,0.04,3771.9,3771.8,1.37141]
[1753836124173,0.04,3771.9,3771.8,4.9576]
[1753836124757,0.04,3771.9,3771.8,0.8296]
[1753836125548,0.04,3771.9,3771.8,4.9576]
[1753836125970,0.04,3771.9,3771.8,0.8296]
[1753836126170,0.04,3771.9,3771.8,4.9566]
[1753836126369,0.04,3771.9,3771.8,5.46554]
[1753836128853,0.04,3771.9,3771.8,0.50894]
[1753836129196,0.9413,3771.9,3771.8,4.127]
[1753836129495,0.9413,3771.9,3771.7,0.1328]
[1753836129698,0.9413,3771.9,3771.8,4.127]
[1753836129699,0.4681,3771.9,3771.8,4.127]
[1753836129901,0.4681,3771.9,3771.7,0.1328]
[1753836130388,0.4732,3771.8,3771.7,0.1328]
[1753836130591,0.4732,3771.8,3771.7,4.2598]
[1753836130811,0.4732,3771.8,3771.7,4.76833]
[1753836131007,0.4732,3771.8,3771.7,0.64133]
[1753836131209,0.4732,3771.8,3771.7,0.1328]
[1753836131413,0.4732,3771.8,3771.7,4.2598]
[1753836131582,0.4681,3771.9,3771.7,4.2598]
[1753836131583,0.04,3771.9,3771.7,4.2598]
[1753836131784,0.04,3771.9,3771.8,4.127]
[1753836132107,0.042,3771.9,3771.7,0.1328]
[1753836132296,0.5152,3771.9,3771.7,0.1328]
[1753836132474,0.042,3771.9,3771.8,4.126]
[1753836132876,0.042,3771.9,3771.7,0.1328]
[1753836133085,0.4281,3771.8,3771.7,0.1328]
[1753836133417,0.9013,3771.8,3771.7,0.1328]
[1753836137828,0.9013,3771.8,3770.7,4.28]
[1753836138113,2.07290545,3771.7,3770.9,0.1328]
[1753836138298,0.1328,3771.4,3770.9,0.1328]
[1753836138525,0.9013,3771.3,3770.9,0.1328]
[1753836138716,0.9013,3771.2,3770.9,0.1328]
[1753836138903,0.9013,3771.1,3770.9,0.1328]
[1753836139240,0.9013,3771.0,3770.9,0.1328]
[1753836140752,1.7167,3771.0,3770.7,0.1328]
[1753836141057,0.9013,3770.9,3770.7,0.1328]
[1753836141549,0.8154,3771.0,3770.7,0.1328]
[1753836141846,0.9013,3770.8,3770.7,0.1328]
[1753836146863,0.4732,3770.8,3770.7,0.1328]
[1753836147036,0.9013,3770.8,3770.7,0.1328]
[1753836147963,0.9013,3770.8,3769.7,0.8277]
[1753836147964,0.93412545,3770.8,3769.7,0.8277]
[1753836148262,0.8143,3770.6,3770.2,0.1328]
[1753836148623,0.9013,3770.5,3770.2,0.1328]
[1753836149038,0.4732,3770.7,3770.2,0.1328]
[1753836149222,0.4281,3770.9,3770.2,0.3267]
[1753836149422,0.4281,3770.9,3770.6,0.1328]
[1753836149625,0.4732,3770.8,3770.6,0.1328]
[1753836149860,0.4281,3771.2,3770.6,0.1328]
[1753836150064,0.4732,3771.1,3770.6,0.1328]
[1753836150521,0.9457,3771.3,3770.6,0.1328]
[1753836150720,0.4281,3771.4,3770.9,0.1328]
[1753836150966,0.9457,3771.6,3770.9,0.1328]
[1753836151167,1.3738,3771.6,3770.9,0.1328]
[1753836151677,0.4281,3772.0,3771.0,0.79911816]
[1753836151972,0.002,3772.1,3771.8,0.1328]
[1753836152191,1.2736,3771.8,3771.1,0.37991182]
[1753836152390,0.1328,3771.5,3771.0,4.28]
[1753836152551,1.80592545,3771.4,3770.9,0.1328]
[1753836152732,1.093,3771.3,3770.7,0.1328]
[1753836153134,0.8129,3771.1,3769.7,1.46485848]
[1753836153334,0.8129,3771.1,3769.1,0.04]
[1753836153335,0.8129,3770.4,3769.2,0.8177]
[1753836153567,0.1328,3770.3,3769.7,0.1328]
[1753836153979,0.9602,3770.2,3769.7,0.1328]
[1753836154180,0.1328,3770.3,3769.7,0.1328]
[1753836154339,0.9602,3770.2,3769.7,0.1328]
[1753836154542,0.9602,3770.1,3769.7,0.1328]
[1753836154741,0.9602,3770.0,3769.7,0.1328]
[1753836155238,0.4995,3770.0,3769.7,0.1328]
[1753836155438,0.5935,3770.3,3769.7,0.1328]
[1753836155638,0.5935,3770.3,3769.2,3.8177]
[1753836155639,0.8948,3769.8,3769.2,0.1328]
[1753836155838,0.99302545,3769.7,3769.2,0.1328]
[1753836156045,0.9602,3769.7,3769.2,0.1328]
[1753836156286,0.9602,3769.6,3769.2,0.1328]
[1753836156656,0.9602,3769.5,3769.2,0.1328]
[1753836157054,0.9602,3769.4,3769.2,0.1328]
[1753836157288,0.4995,3769.4,3769.2,0.1328]
[1753836157496,0.9602,3769.7,3769.2,0.1328]
[1753836157695,0.4995,3769.6,3769.2,0.1328]
[1753836157878,0.8948,3769.8,3769.2,0.1328]
[1753836158083,0.4995,3770.0,3769.1,0.04]
[1753836158312,0.4995,3770.0,3769.6,0.1328]
[1753836158630,0.9602,3769.9,3769.6,0.1328]
[1753836158923,0.9427,3770.5,3769.5,0.7621]
[1753836159078,0.4995,3770.7,3770.0,0.1328]
[1753836159408,0.4607,3770.8,3770.5,0.1328]
[1753836159628,0.4995,3770.6,3770.5,0.1328]
[1753836160113,0.9602,3770.6,3770.5,0.1328]
[1753836162807,0.8099,3770.9,3770.5,0.1328]
[1753836163011,0.9602,3771.1,3770.5,0.1328]
[1753836163174,0.9602,3771.1,3770.3,0.7622]
[1753836163175,0.9602,3771.1,3770.7,0.1328]
[1753836163372,0.9602,3771.0,3770.7,0.1328]
[1753836163617,0.4995,3770.9,3770.7,0.1328]
[1753836163782,0.4995,3771.2,3770.7,0.1328]
[1753836163976,0.4995,3771.1,3770.7,0.1328]
[1753836164207,0.9602,3771.1,3770.7,0.1328]
[1753836164405,0.9379,3771.3,3770.7,0.1328]
[1753836164594,0.9602,3771.2,3770.7,0.1328]
[1753836164991,0.1328,3771.0,3770.5,0.1328]
[1753836165314,0.8948,3770.6,3770.1,0.1328]
[1753836165501,0.99302545,3770.5,3769.4,0.8017]
[1753836165707,0.1328,3770.3,3770.1,0.001]
[1753836166102,0.9602,3770.2,3770.1,0.001]
[1753836167514,1.76202545,3770.2,3770.1,0.001]
[1753836168395,2.31202545,3770.2,3770.1,0.001]
[1753836171839,2.2792,3770.2,3770.1,0.001]
[1753836171984,5.80712,3770.2,3770.1,0.001]
[1753836173490,4.7292,3770.2,3770.1,0.001]
[1753836177390,4.862,3770.2,3770.1,0.001]
[1753836178925,8.987,3770.2,3770.1,0.001]
[1753836180916,9.537,3770.2,3770.1,0.001]
[1753836181095,39.537,3770.2,3770.1,0.001]
[1753836182191,39.95002098,3770.2,3770.1,0.001]
[1753836182828,45.39740016,3770.2,3770.1,0.001]
[1753836183131,46.99140016,3770.2,3770.1,0.001]
[1753836184713,46.99140016,3770.2,3768.8,0.001]
[1753836184714,3.55,3769.2,3768.8,0.001]
[1753836184908,8.6277,3769.2,3768.8,0.001]
[1753836185107,9.0847,3769.2,3768.8,0.001]
[1753836185306,9.5831,3769.2,3768.8,0.001]
[1753836185530,39.5831,3769.2,3768.8,0.001]
[1753836186131,46.16318837,3769.2,3768.8,0.001]
[1753836186513,16.16318837,3769.2,3768.8,0.001]
[1753836186712,46.16318837,3769.2,3768.8,0.001]
[1753836187110,52.02429223,3769.2,3768.8,0.001]
[1753836187339,2.65358237,3768.5,3766.8,0.7907]
[1753836187511,0.55,3768.2,3766.8,0.7907]
[1753836187717,0.55,3768.0,3767.2,0.4343]
[1753836187936,3.0,3768.0,3767.2,0.4343]